[Event "Late-Titled-Tuesday-Blitz-March-19-2024"]
[Site "Chess.com"]
[Date "2024.03.19"]
[Round "3"]
[White "dcremisi"]
[Black "Fandorine"]
[Result "1/2-1/2"]
[WhiteElo "2676"]
[BlackElo "2934"]
[TimeControl "180+1"]
[EndTime "14:29:04 PDT"]
[Termination "Game drawn - insufficient material"]

1. Nf3 {[%clk 0:03:00.9]} 1... Nf6 {[%clk 0:02:59.8]} 2. d4 {[%clk 0:03:00.7]}
2... g6 {[%clk 0:02:56.1]} 3. c4 {[%clk 0:03:00.8]} 3... Bg7 {[%clk 0:02:56.7]}
4. Nc3 {[%clk 0:03:01]} 4... O-O {[%clk 0:02:57.4]} 5. e4 {[%clk 0:03:00.7]}
5... d6 {[%clk 0:02:57.9]} 6. Be2 {[%clk 0:03:01]} 6... e5 {[%clk 0:02:58.6]} 7.
dxe5 {[%clk 0:03:01]} 7... dxe5 {[%clk 0:02:58.8]} 8. Qxd8 {[%clk 0:03:00.8]}
8... Rxd8 {[%clk 0:02:59.7]} 9. Bg5 {[%clk 0:03:01.1]} 9... Be6 {[%clk
0:02:59.8]} 10. Nd5 {[%clk 0:02:59.6]} 10... Bxd5 {[%clk 0:02:30.7]} 11. cxd5
{[%clk 0:02:59.6]} 11... c6 {[%clk 0:02:21.2]} 12. Bc4 {[%clk 0:02:57]} 12...
cxd5 {[%clk 0:02:05.1]} 13. Bxd5 {[%clk 0:02:55.7]} 13... Nbd7 {[%clk
0:02:05.8]} 14. O-O-O {[%clk 0:02:39.4]} 14... h6 {[%clk 0:02:01.6]} 15. Bxf6
{[%clk 0:02:38]} 15... Nxf6 {[%clk 0:02:00.3]} 16. Bxb7 {[%clk 0:02:34]} 16...
Rxd1+ {[%clk 0:01:44.3]} 17. Rxd1 {[%clk 0:02:32.1]} 17... Rb8 {[%clk
0:01:45.2]} 18. Bd5 {[%clk 0:02:31.9]} 18... Ng4 {[%clk 0:01:34.5]} 19. Rd2
{[%clk 0:02:31.2]} 19... h5 {[%clk 0:01:25.2]} 20. h3 {[%clk 0:02:31.2]} 20...
Nf6 {[%clk 0:01:00.5]} 21. Kb1 {[%clk 0:02:25.9]} 21... Bh6 {[%clk 0:00:55]} 22.
Rd1 {[%clk 0:02:21.4]} 22... Nxd5 {[%clk 0:00:45.5]} 23. Rxd5 {[%clk 0:02:20.3]}
23... Rb4 {[%clk 0:00:39.6]} 24. Rxe5 {[%clk 0:02:06.3]} 24... Rc4 {[%clk
0:00:39.2]} 25. a4 {[%clk 0:01:56.5]} 25... Rc1+ {[%clk 0:00:39.1]} 26. Ka2
{[%clk 0:01:56.4]} 26... Rc2 {[%clk 0:00:39.2]} 27. Rb5 {[%clk 0:01:51.2]} 27...
Rxf2 {[%clk 0:00:38.7]} 28. Rb7 {[%clk 0:01:49.8]} 28... Be3 {[%clk 0:00:36.9]}
29. Ne5 {[%clk 0:01:47.5]} 29... Rxg2 {[%clk 0:00:26.4]} 30. Nxf7 {[%clk
0:01:44.9]} 30... Bd4 {[%clk 0:00:21.5]} 31. Nd6 {[%clk 0:01:44.8]} 31... Re2
{[%clk 0:00:16.5]} 32. h4 {[%clk 0:01:28.9]} 32... a6 {[%clk 0:00:15.3]} 33. Rb4
{[%clk 0:01:02.6]} 33... Bf6 {[%clk 0:00:15.4]} 34. Rb6 {[%clk 0:00:57.5]} 34...
Bxh4 {[%clk 0:00:13.8]} 35. Rxa6 {[%clk 0:00:55.3]} 35... Bf6 {[%clk 0:00:14.4]}
36. Nc4 {[%clk 0:00:55.2]} 36... Kg7 {[%clk 0:00:14.9]} 37. e5 {[%clk
0:00:49.1]} 37... Bxe5 {[%clk 0:00:15]} 38. Re6 {[%clk 0:00:47.4]} 38... Re4
{[%clk 0:00:14.5]} 39. Nxe5 {[%clk 0:00:46.9]} 39... Rxa4+ {[%clk 0:00:15]} 40.
Kb3 {[%clk 0:00:47.2]} 40... Re4 {[%clk 0:00:13.2]} 41. Rxg6+ {[%clk 0:00:47]}
41... Kh7 {[%clk 0:00:13.7]} 42. Re6 {[%clk 0:00:46.9]} 42... h4 {[%clk
0:00:14]} 43. Re7+ {[%clk 0:00:21.2]} 43... Kg8 {[%clk 0:00:12.9]} 44. Re8+
{[%clk 0:00:17.2]} 44... Kg7 {[%clk 0:00:08.1]} 45. Re7+ {[%clk 0:00:15.1]}
45... Kf6 {[%clk 0:00:06.3]} 46. Rh7 {[%clk 0:00:15.2]} 46... Kxe5 {[%clk
0:00:06.1]} 47. Ka3 {[%clk 0:00:15.3]} 47... Kf5 {[%clk 0:00:05.7]} 48. b4
{[%clk 0:00:15.1]} 48... Kg4 {[%clk 0:00:04.9]} 49. Ka4 {[%clk 0:00:15.2]} 49...
h3 {[%clk 0:00:04.3]} 50. Ka5 {[%clk 0:00:14.8]} 50... Re5+ {[%clk 0:00:04.8]}
51. b5 {[%clk 0:00:15]} 51... Rh5 {[%clk 0:00:05.4]} 52. Rg7+ {[%clk 0:00:15.1]}
52... Kf3 {[%clk 0:00:05.9]} 53. Rg1 {[%clk 0:00:15]} 53... h2 {[%clk
0:00:06.6]} 54. Rh1 {[%clk 0:00:14.1]} 54... Kg2 {[%clk 0:00:07.2]} 55. Rxh2+
{[%clk 0:00:14]} 55... Kxh2 {[%clk 0:00:08.1]} 56. Ka6 {[%clk 0:00:14.3]} 56...
Kg3 {[%clk 0:00:08.8]} 57. b6 {[%clk 0:00:14.5]} 57... Kf4 {[%clk 0:00:09.5]}
58. b7 {[%clk 0:00:14.8]} 58... Rh6+ {[%clk 0:00:09.8]} 59. Ka7 {[%clk 0:00:15]}
59... Rh7 {[%clk 0:00:10.5]} 60. Ka8 {[%clk 0:00:15.2]} 60... Rxb7 {[%clk
0:00:11.4]} 61. Kxb7 {[%clk 0:00:14.8]} 1/2-1/2

[Event "Late-Titled-Tuesday-Blitz-March-19-2024"]
[Site "Chess.com"]
[Date "2024.03.19"]
[Round "3"]
[White "sansanathalia"]
[Black "TheKnightOfBosnia"]
[Result "1-0"]
[WhiteElo "2396"]
[BlackElo "2609"]
[TimeControl "180+1"]
[EndTime "14:29:08 PDT"]
[Termination "sansanathalia won by checkmate"]

1. e4 {[%clk 0:03:00.9]} 1... c5 {[%clk 0:02:54.5]} 2. Nf3 {[%clk 0:02:59.9]}
2... d6 {[%clk 0:02:54.8]} 3. d4 {[%clk 0:02:59]} 3... cxd4 {[%clk 0:02:55.7]}
4. Qxd4 {[%clk 0:02:59.2]} 4... Nf6 {[%clk 0:02:54]} 5. e5 {[%clk 0:02:58.8]}
5... Nc6 {[%clk 0:02:52.4]} 6. Bb5 {[%clk 0:02:57.1]} 6... dxe5 {[%clk
0:02:52.2]} 7. Qxd8+ {[%clk 0:02:56.5]} 7... Kxd8 {[%clk 0:02:52.3]} 8. Bxc6
{[%clk 0:02:56.4]} 8... bxc6 {[%clk 0:02:53]} 9. Nxe5 {[%clk 0:02:56.7]} 9...
Ke8 {[%clk 0:02:44.9]} 10. Nc3 {[%clk 0:02:55.5]} 10... e6 {[%clk 0:02:42.4]}
11. O-O {[%clk 0:02:37.9]} 11... Bb7 {[%clk 0:02:34.8]} 12. Bg5 {[%clk
0:02:36.9]} 12... Bd6 {[%clk 0:02:32.4]} 13. Nc4 {[%clk 0:02:28.8]} 13... Bc7
{[%clk 0:02:30]} 14. Rad1 {[%clk 0:02:14.9]} 14... Nd5 {[%clk 0:02:27.5]} 15.
Ne4 {[%clk 0:02:10.8]} 15... Ba6 {[%clk 0:02:22.8]} 16. b3 {[%clk 0:01:52.1]}
16... h6 {[%clk 0:02:17.4]} 17. Bc1 {[%clk 0:01:40.9]} 17... Rd8 {[%clk
0:02:14.6]} 18. Bb2 {[%clk 0:01:25.5]} 18... f6 {[%clk 0:02:05.4]} 19. Nc5
{[%clk 0:01:23.8]} 19... Bxc4 {[%clk 0:02:04]} 20. bxc4 {[%clk 0:01:22.2]} 20...
Nf4 {[%clk 0:01:54.6]} 21. g3 {[%clk 0:01:19.5]} 21... Ne2+ {[%clk 0:01:49.3]}
22. Kg2 {[%clk 0:01:19]} 22... Kf7 {[%clk 0:01:42.9]} 23. Kf3 {[%clk 0:01:11.3]}
23... Bb6 {[%clk 0:01:42.6]} 24. Nb3 {[%clk 0:01:08.5]} 24... Nxg3 {[%clk
0:01:21.4]} 25. hxg3 {[%clk 0:01:07]} 25... a5 {[%clk 0:01:19.8]} 26. c5 {[%clk
0:01:04.6]} 26... Bc7 {[%clk 0:01:18.7]} 27. Nd4 {[%clk 0:01:03.9]} 27... Rc8
{[%clk 0:00:20.5]} 28. Rfe1 {[%clk 0:00:34.5]} 28... Be5 {[%clk 0:00:18.9]} 29.
Bc3 {[%clk 0:00:25.5]} 29... a4 {[%clk 0:00:18.3]} 30. Ne2 {[%clk 0:00:23.7]}
30... Bxc3 {[%clk 0:00:15.1]} 31. Nxc3 {[%clk 0:00:23.6]} 31... Rhd8 {[%clk
0:00:13.3]} 32. Ne4 {[%clk 0:00:20.2]} 32... Ra8 {[%clk 0:00:11.5]} 33. Nd6+
{[%clk 0:00:19.6]} 33... Ke7 {[%clk 0:00:11.7]} 34. Re4 {[%clk 0:00:18.6]} 34...
Ra5 {[%clk 0:00:11.5]} 35. Nf5+ {[%clk 0:00:15.8]} 35... Ke8 {[%clk 0:00:07.3]}
36. Nxg7+ {[%clk 0:00:15.8]} 36... Ke7 {[%clk 0:00:05]} 37. Rxe6+ {[%clk
0:00:15.7]} 37... Kf7 {[%clk 0:00:04.9]} 38. Rxd8 {[%clk 0:00:15.1]} 38... Kxg7
{[%clk 0:00:05.8]} 39. Rxc6 {[%clk 0:00:14.8]} 39... Rb5 {[%clk 0:00:05.9]} 40.
Rd7+ {[%clk 0:00:14.5]} 40... Kg6 {[%clk 0:00:06.5]} 41. Rdd6 {[%clk 0:00:15]}
41... Kg5 {[%clk 0:00:06.6]} 42. Rxf6 {[%clk 0:00:14.7]} 42... Rb2 {[%clk
0:00:07.5]} 43. Kg2 {[%clk 0:00:14.2]} 43... Rxc2 {[%clk 0:00:05.8]} 44. Rxh6
{[%clk 0:00:12.7]} 44... Rxa2 {[%clk 0:00:04.6]} 45. Rh8 {[%clk 0:00:12.3]}
45... Kf5 {[%clk 0:00:04.9]} 46. Ra8 {[%clk 0:00:12.8]} 46... Ke5 {[%clk
0:00:05.1]} 47. Rca6 {[%clk 0:00:13.4]} 47... Rc2 {[%clk 0:00:05.8]} 48. Rxa4
{[%clk 0:00:13.1]} 48... Kd5 {[%clk 0:00:06.2]} 49. R4a5 {[%clk 0:00:13.3]}
49... Rb2 {[%clk 0:00:06.6]} 50. Rd8+ {[%clk 0:00:12.7]} 50... Kc6 {[%clk
0:00:06.8]} 51. Rd6+ {[%clk 0:00:13]} 51... Kb7 {[%clk 0:00:07.2]} 52. Rb6+
{[%clk 0:00:13.1]} 52... Rxb6 {[%clk 0:00:06.8]} 53. cxb6 {[%clk 0:00:14]} 53...
Kb8 {[%clk 0:00:07.2]} 54. g4 {[%clk 0:00:14.1]} 54... Kb7 {[%clk 0:00:08.1]}
55. g5 {[%clk 0:00:14.8]} 55... Kxb6 {[%clk 0:00:08.3]} 56. g6 {[%clk
0:00:15.5]} 56... Kxa5 {[%clk 0:00:09.2]} 57. g7 {[%clk 0:00:16.4]} 57... Kb4
{[%clk 0:00:09.7]} 58. g8=Q {[%clk 0:00:17.3]} 58... Kc5 {[%clk 0:00:10.6]} 59.
Qe6 {[%clk 0:00:17.5]} 59... Kd4 {[%clk 0:00:11.5]} 60. f4 {[%clk 0:00:17.2]}
60... Kd3 {[%clk 0:00:11.4]} 61. f5 {[%clk 0:00:18.1]} 61... Kd4 {[%clk
0:00:12.3]} 62. f6 {[%clk 0:00:19]} 62... Kd3 {[%clk 0:00:13.2]} 63. f7 {[%clk
0:00:19.8]} 63... Kd4 {[%clk 0:00:14.1]} 64. f8=Q {[%clk 0:00:20.4]} 64... Kc3
{[%clk 0:00:14.5]} 65. Qc5+ {[%clk 0:00:20.5]} 65... Kd2 {[%clk 0:00:15.4]} 66.
Qd4+ {[%clk 0:00:20.3]} 66... Kc2 {[%clk 0:00:15.7]} 67. Qc6+ {[%clk 0:00:20.9]}
67... Kb1 {[%clk 0:00:16.1]} 68. Qb4+ {[%clk 0:00:20.9]} 68... Ka2 {[%clk
0:00:16.5]} 69. Qa6# {[%clk 0:00:21.3]} 1-0

[Event "Late-Titled-Tuesday-Blitz-March-19-2024"]
[Site "Chess.com"]
[Date "2024.03.19"]
[Round "3"]
[White "Redzishchess"]
[Black "SaqoChess_Twitch"]
[Result "1-0"]
[WhiteElo "2505"]
[BlackElo "2646"]
[TimeControl "180+1"]
[EndTime "14:29:13 PDT"]
[Termination "Redzishchess won by resignation"]

1. d4 {[%clk 0:03:00.9]} 1... d5 {[%clk 0:02:51.6]} 2. c4 {[%clk 0:03:00.8]}
2... e6 {[%clk 0:02:50.6]} 3. Nf3 {[%clk 0:02:59]} 3... Nf6 {[%clk 0:02:51.2]}
4. g3 {[%clk 0:02:59.5]} 4... Be7 {[%clk 0:02:51.8]} 5. Bg2 {[%clk 0:03:00]}
5... O-O {[%clk 0:02:52.4]} 6. O-O {[%clk 0:03:00.7]} 6... dxc4 {[%clk 0:02:53]}
7. Ne5 {[%clk 0:03:01.2]} 7... Nc6 {[%clk 0:02:52.9]} 8. Bxc6 {[%clk 0:03:01.9]}
8... bxc6 {[%clk 0:02:53.8]} 9. Nxc6 {[%clk 0:03:02.7]} 9... Qe8 {[%clk
0:02:53.3]} 10. Nxe7+ {[%clk 0:03:03.3]} 10... Qxe7 {[%clk 0:02:54.2]} 11. Qc2
{[%clk 0:03:04]} 11... e5 {[%clk 0:02:54.3]} 12. dxe5 {[%clk 0:03:01.4]} 12...
Qxe5 {[%clk 0:02:55.2]} 13. Bf4 {[%clk 0:02:51.5]} 13... Qh5 {[%clk 0:02:51.6]}
14. Nc3 {[%clk 0:02:48.1]} 14... Bh3 {[%clk 0:02:51.8]} 15. Rfd1 {[%clk
0:02:46.9]} 15... Ng4 {[%clk 0:02:52.2]} 16. f3 {[%clk 0:02:04.9]} 16... Nxh2
{[%clk 0:02:50.5]} 17. Rd5 {[%clk 0:01:37.4]} 17... Nxf3+ {[%clk 0:02:36]} 18.
exf3 {[%clk 0:01:37.5]} 18... Qxf3 {[%clk 0:02:36.9]} 19. Qe4 {[%clk 0:00:49.4]}
19... Qg4 {[%clk 0:02:10.9]} 20. Rg5 {[%clk 0:00:48.1]} 20... Qd7 {[%clk
0:02:10.7]} 21. Rd1 {[%clk 0:00:46.5]} 21... Qe6 {[%clk 0:02:02.2]} 22. Re5
{[%clk 0:00:41]} 22... Qg4 {[%clk 0:01:57.3]} 23. Rg5 {[%clk 0:00:41.2]} 23...
Qe6 {[%clk 0:01:57.5]} 24. Qxe6 {[%clk 0:00:19.9]} 24... Bxe6 {[%clk 0:01:58.4]}
25. Bxc7 {[%clk 0:00:20.2]} 25... Rfc8 {[%clk 0:01:55.6]} 26. Be5 {[%clk
0:00:18.8]} 26... g6 {[%clk 0:01:49.7]} 27. Ne4 {[%clk 0:00:19.1]} 27... h6
{[%clk 0:01:46.8]} 28. Nf6+ {[%clk 0:00:14.9]} 28... Kf8 {[%clk 0:01:47.3]} 29.
Bd6+ {[%clk 0:00:13.1]} 29... Kg7 {[%clk 0:01:46.8]} 30. Nh5+ {[%clk 0:00:11.5]}
30... Kh7 {[%clk 0:01:38.8]} 31. Nf6+ {[%clk 0:00:11.9]} 31... Kg7 {[%clk
0:01:35.3]} 32. Nh5+ {[%clk 0:00:12.3]} 32... Kg8 {[%clk 0:01:33.4]} 33. Nf6+
{[%clk 0:00:06.9]} 33... Kh8 {[%clk 0:01:34]} 34. Rc5 {[%clk 0:00:05.3]} 34...
Rxc5 {[%clk 0:01:28.6]} 35. Bxc5 {[%clk 0:00:06.2]} 35... g5 {[%clk 0:01:23.8]}
36. Bd4 {[%clk 0:00:06.2]} 36... Kg7 {[%clk 0:01:24.4]} 37. Bc3 {[%clk
0:00:04.4]} 37... Kg6 {[%clk 0:01:24.7]} 38. Rd6 {[%clk 0:00:04.3]} 38... h5
{[%clk 0:01:21.6]} 39. Kf2 {[%clk 0:00:04.7]} 39... h4 {[%clk 0:01:20.7]} 40.
gxh4 {[%clk 0:00:05.6]} 40... gxh4 {[%clk 0:01:21.6]} 41. Kg2 {[%clk 0:00:05.5]}
41... h3+ {[%clk 0:01:22.3]} 42. Kh2 {[%clk 0:00:05.9]} 42... Rb8 {[%clk
0:01:22.2]} 43. Ng4 {[%clk 0:00:05.8]} 43... Rb5 {[%clk 0:01:19.6]} 44. Ne5+
{[%clk 0:00:05.7]} 44... Kg5 {[%clk 0:01:16.9]} 45. Nf3+ {[%clk 0:00:03.9]}
45... Kf4 {[%clk 0:01:17.5]} 46. Ng1 {[%clk 0:00:03.8]} 46... Ke4 {[%clk
0:01:13.6]} 47. Rd4+ {[%clk 0:00:03.6]} 47... Ke3 {[%clk 0:01:13.6]} 48. Rh4
{[%clk 0:00:02.8]} 48... Rf5 {[%clk 0:01:03.9]} 49. Nxh3 {[%clk 0:00:03]} 49...
Rf3 {[%clk 0:01:04.4]} 50. Ng5 {[%clk 0:00:03.1]} 50... Rf2+ {[%clk 0:01:04.6]}
51. Kg1 {[%clk 0:00:03.6]} 51... Rc2 {[%clk 0:00:59.2]} 52. Nxe6 {[%clk
0:00:03.8]} 52... fxe6 {[%clk 0:01:00.1]} 53. Rxc4 {[%clk 0:00:04.1]} 53... Kf3
{[%clk 0:00:59.3]} 54. Rc7 {[%clk 0:00:03.7]} 54... a6 {[%clk 0:00:53]} 55. Be5
{[%clk 0:00:03.8]} 55... Re2 {[%clk 0:00:52.5]} 56. Bc3 {[%clk 0:00:03.3]} 56...
Rc2 {[%clk 0:00:52.7]} 57. Rf7+ {[%clk 0:00:02.5]} 57... Kg3 {[%clk 0:00:52.6]}
58. Kf1 {[%clk 0:00:02.4]} 58... a5 {[%clk 0:00:51.3]} 59. Ke1 {[%clk
0:00:02.7]} 59... a4 {[%clk 0:00:51.8]} 60. Kd1 {[%clk 0:00:02.6]} 60... Rg2
{[%clk 0:00:52.4]} 61. Rg7+ {[%clk 0:00:02.4]} 61... Kf3 {[%clk 0:00:53.2]} 62.
Rxg2 {[%clk 0:00:03.3]} 62... Kxg2 {[%clk 0:00:54.1]} 63. Kd2 {[%clk 0:00:03.6]}
63... Kf3 {[%clk 0:00:54.5]} 64. a3 {[%clk 0:00:02.9]} 64... Kf4 {[%clk
0:00:55.4]} 65. Kd3 {[%clk 0:00:03.4]} 65... e5 {[%clk 0:00:55.4]} 66. Bxe5+
{[%clk 0:00:03.4]} 66... Kxe5 {[%clk 0:00:55.7]} 67. Kc4 {[%clk 0:00:04.3]}
67... Kd6 {[%clk 0:00:55.6]} 68. Kb4 {[%clk 0:00:05.2]} 68... Kc6 {[%clk
0:00:56.3]} 69. Kxa4 {[%clk 0:00:06.1]} 69... Kb6 {[%clk 0:00:57.2]} 70. Kb4
{[%clk 0:00:06.6]} 70... Ka6 {[%clk 0:00:58.1]} 71. a4 {[%clk 0:00:07.2]} 71...
Kb6 {[%clk 0:00:59]} 72. a5+ {[%clk 0:00:07.5]} 72... Ka6 {[%clk 0:00:59.9]} 73.
Ka4 {[%clk 0:00:08.4]} 73... Ka7 {[%clk 0:01:00.6]} 74. Kb5 {[%clk 0:00:09.3]}
74... Kb7 {[%clk 0:01:00.9]} 75. b4 {[%clk 0:00:10.2]} 75... Ka7 {[%clk
0:01:01.8]} 76. Kc5 {[%clk 0:00:11]} 76... Ka6 {[%clk 0:01:02.7]} 77. b5+ {[%clk
0:00:11.9]} 77... Kxa5 {[%clk 0:01:02.8]} 78. b6 {[%clk 0:00:12]} 78... Ka6
{[%clk 0:01:03.7]} 79. Kc6 {[%clk 0:00:12.6]} 79... Ka5 {[%clk 0:01:03.8]} 80.
b7 {[%clk 0:00:13.2]} 80... Kb4 {[%clk 0:01:04.7]} 81. b8=Q+ {[%clk 0:00:13.5]}
81... Kc4 {[%clk 0:01:05.6]} 82. Qb5+ {[%clk 0:00:14.1]} 82... Kd4 {[%clk
0:01:06.5]} 83. Qd5+ {[%clk 0:00:14.7]} 83... Kc3 {[%clk 0:01:06.7]} 84. Kc5
{[%clk 0:00:15.6]} 84... Kb2 {[%clk 0:01:07.4]} 85. Qd4+ {[%clk 0:00:16.5]}
85... Ka3 {[%clk 0:01:08.2]} 86. Kc4 {[%clk 0:00:17.3]} 86... Ka2 {[%clk
0:01:08.1]} 87. Qb6 {[%clk 0:00:17.1]} 87... Ka1 {[%clk 0:01:08.2]} 88. Kc3
{[%clk 0:00:17.7]} 1-0

[Event "Late-Titled-Tuesday-Blitz-March-19-2024"]
[Site "Chess.com"]
[Date "2024.03.19"]
[Round "3"]
[White "AradNazari"]
[Black "bitter-cikolata"]
[Result "1-0"]
[WhiteElo "2760"]
[BlackElo "2511"]
[TimeControl "180+1"]
[EndTime "14:29:14 PDT"]
[Termination "AradNazari won by resignation"]

1. e4 {[%clk 0:03:00.9]} 1... e5 {[%clk 0:02:59.3]} 2. f4 {[%clk 0:02:59]} 2...
d5 {[%clk 0:02:54.7]} 3. exd5 {[%clk 0:02:59.1]} 3... e4 {[%clk 0:02:53]} 4. d3
{[%clk 0:02:59.6]} 4... Qxd5 {[%clk 0:02:52]} 5. Nc3 {[%clk 0:02:57.8]} 5... Bb4
{[%clk 0:02:52.3]} 6. Bd2 {[%clk 0:02:48.2]} 6... Bxc3 {[%clk 0:02:51.2]} 7.
Bxc3 {[%clk 0:02:49.1]} 7... Nf6 {[%clk 0:02:48]} 8. Bxf6 {[%clk 0:02:39.4]}
8... gxf6 {[%clk 0:02:47.8]} 9. dxe4 {[%clk 0:02:40.1]} 9... Qxe4+ {[%clk
0:02:47.6]} 10. Qe2 {[%clk 0:02:40.8]} 10... Qxe2+ {[%clk 0:02:38.7]} 11. Bxe2
{[%clk 0:02:40]} 11... Nc6 {[%clk 0:02:35.7]} 12. c3 {[%clk 0:02:39.7]} 12...
Be6 {[%clk 0:02:33.5]} 13. Bf3 {[%clk 0:02:34]} 13... O-O-O {[%clk 0:02:32.4]}
14. Ne2 {[%clk 0:02:30.2]} 14... Rhe8 {[%clk 0:02:28.7]} 15. b3 {[%clk
0:02:03.8]} 15... Bf5 {[%clk 0:01:52.7]} 16. Rd1 {[%clk 0:01:58.2]} 16... Rxd1+
{[%clk 0:01:49.7]} 17. Kxd1 {[%clk 0:01:59.1]} 17... Be4 {[%clk 0:01:41.5]} 18.
Bxe4 {[%clk 0:01:56.2]} 18... Rxe4 {[%clk 0:01:42.2]} 19. Kd2 {[%clk 0:01:53.9]}
19... Ne7 {[%clk 0:01:39]} 20. Re1 {[%clk 0:01:49.3]} 20... Nd5 {[%clk
0:01:33.7]} 21. g3 {[%clk 0:01:48.1]} 21... f5 {[%clk 0:01:30]} 22. a3 {[%clk
0:01:40.8]} 22... c5 {[%clk 0:01:27.5]} 23. c4 {[%clk 0:01:39]} 23... Nf6 {[%clk
0:01:16.1]} 24. Nc3 {[%clk 0:01:38.1]} 24... Rd4+ {[%clk 0:01:08.1]} 25. Kc2
{[%clk 0:01:31.3]} 25... Ne4 {[%clk 0:01:08.5]} 26. Re2 {[%clk 0:01:03.2]} 26...
a6 {[%clk 0:00:37.6]} 27. Nd5 {[%clk 0:01:00]} 27... Kd7 {[%clk 0:00:32.5]} 28.
g4 {[%clk 0:00:50.5]} 28... Ke6 {[%clk 0:00:18.2]} 29. Nc3 {[%clk 0:00:42.9]}
29... Kf6 {[%clk 0:00:14.2]} 30. Nd5+ {[%clk 0:00:30.9]} 30... Ke6 {[%clk
0:00:12.2]} 31. h3 {[%clk 0:00:31.5]} 31... fxg4 {[%clk 0:00:10.1]} 32. hxg4
{[%clk 0:00:32]} 32... f5 {[%clk 0:00:10]} 33. g5 {[%clk 0:00:32.7]} 33... Kd6
{[%clk 0:00:05.8]} 34. Rh2 {[%clk 0:00:21.8]} 34... b5 {[%clk 0:00:04.5]} 35.
Rh6+ {[%clk 0:00:21.6]} 35... Kd7 {[%clk 0:00:03.3]} 36. Rxh7+ {[%clk
0:00:21.3]} 36... Kc6 {[%clk 0:00:03.4]} 37. Rh6+ {[%clk 0:00:19.2]} 37... Kd7
{[%clk 0:00:02.7]} 38. Ne3 {[%clk 0:00:12.2]} 38... Rd2+ {[%clk 0:00:01.6]} 39.
Kc1 {[%clk 0:00:12.6]} 39... Rf2 {[%clk 0:00:01.7]} 40. Nxf5 {[%clk 0:00:11]}
40... Rxf4 {[%clk 0:00:01.8]} 41. Ne3 {[%clk 0:00:11.4]} 41... Nxg5 {[%clk
0:00:02.1]} 42. Rxa6 {[%clk 0:00:10.8]} 42... bxc4 {[%clk 0:00:02.2]} 43. Nxc4
{[%clk 0:00:11.2]} 43... Rd4 {[%clk 0:00:02.5]} 44. a4 {[%clk 0:00:10.2]} 44...
Ne4 {[%clk 0:00:03]} 45. Kb2 {[%clk 0:00:10.7]} 45... Nd2 {[%clk 0:00:02.4]} 46.
Ne5+ {[%clk 0:00:09.4]} 46... Kc7 {[%clk 0:00:02.6]} 47. Rc6+ {[%clk 0:00:09.3]}
47... Kb7 {[%clk 0:00:02.6]} 48. Rxc5 {[%clk 0:00:09.9]} 48... Rb4 {[%clk
0:00:03.2]} 49. Kc3 {[%clk 0:00:06.5]} 49... Re4 {[%clk 0:00:02.1]} 50. Kxd2
{[%clk 0:00:06.6]} 1-0

[Event "Late-Titled-Tuesday-Blitz-March-19-2024"]
[Site "Chess.com"]
[Date "2024.03.19"]
[Round "3"]
[White "Hrant_ChessMood"]
[Black "nabukatnezarr"]
[Result "0-1"]
[WhiteElo "2931"]
[BlackElo "2578"]
[TimeControl "180+1"]
[EndTime "14:29:14 PDT"]
[Termination "nabukatnezarr won by resignation"]

1. c4 {[%clk 0:03:00.9]} 1... Nf6 {[%clk 0:02:57.7]} 2. g3 {[%clk 0:03:00.5]}
2... g6 {[%clk 0:02:50.8]} 3. Bg2 {[%clk 0:03:00.8]} 3... d5 {[%clk 0:02:51]} 4.
cxd5 {[%clk 0:03:00.8]} 4... Nxd5 {[%clk 0:02:51.9]} 5. Nc3 {[%clk 0:03:01.5]}
5... Nxc3 {[%clk 0:02:44.2]} 6. bxc3 {[%clk 0:03:01.1]} 6... Bg7 {[%clk
0:02:44.7]} 7. Rb1 {[%clk 0:03:01.1]} 7... c6 {[%clk 0:02:41.3]} 8. h4 {[%clk
0:03:00.9]} 8... h6 {[%clk 0:02:38.9]} 9. Nf3 {[%clk 0:02:56.2]} 9... O-O {[%clk
0:02:33.4]} 10. d4 {[%clk 0:02:56.5]} 10... Nd7 {[%clk 0:02:32]} 11. Bf4 {[%clk
0:02:53.7]} 11... Nb6 {[%clk 0:02:31.3]} 12. Qd2 {[%clk 0:02:42.6]} 12... Kh7
{[%clk 0:02:26.2]} 13. e4 {[%clk 0:02:23]} 13... Be6 {[%clk 0:02:15.6]} 14. h5
{[%clk 0:01:40.1]} 14... g5 {[%clk 0:01:52.2]} 15. Bxg5 {[%clk 0:01:39.8]} 15...
hxg5 {[%clk 0:01:53.1]} 16. Nxg5+ {[%clk 0:01:40.7]} 16... Kh8 {[%clk
0:01:51.2]} 17. h6 {[%clk 0:01:15.9]} 17... Bf6 {[%clk 0:01:48.9]} 18. Nxe6
{[%clk 0:01:16.1]} 18... fxe6 {[%clk 0:01:49.8]} 19. f4 {[%clk 0:01:17]} 19...
e5 {[%clk 0:01:02.4]} 20. Rd1 {[%clk 0:00:57.8]} 20... exf4 {[%clk 0:00:56.4]}
21. gxf4 {[%clk 0:00:55.9]} 21... e6 {[%clk 0:00:46]} 22. e5 {[%clk 0:00:54.1]}
22... Bh4+ {[%clk 0:00:44.3]} 23. Ke2 {[%clk 0:00:47.9]} 23... Be7 {[%clk
0:00:33.4]} 24. Rdf1 {[%clk 0:00:44.9]} 24... Rg8 {[%clk 0:00:32.3]} 25. Be4
{[%clk 0:00:44.4]} 25... Nd5 {[%clk 0:00:24.6]} 26. Qd3 {[%clk 0:00:25.6]} 26...
Qa5 {[%clk 0:00:23.7]} 27. Kd2 {[%clk 0:00:12.2]} 27... Qxa2+ {[%clk 0:00:22]}
28. Qc2 {[%clk 0:00:12.6]} 28... Qxc2+ {[%clk 0:00:20.5]} 29. Kxc2 {[%clk
0:00:08.9]} 29... Ne3+ {[%clk 0:00:20.2]} 30. Kb3 {[%clk 0:00:09.4]} 30... Nxf1
{[%clk 0:00:21]} 31. Rxf1 {[%clk 0:00:10.3]} 31... Raf8 {[%clk 0:00:20.6]} 32.
Bd3 {[%clk 0:00:09.2]} 32... Rg4 {[%clk 0:00:19.9]} 33. f5 {[%clk 0:00:09.8]}
33... exf5 {[%clk 0:00:20]} 34. Be2 {[%clk 0:00:02.1]} 34... Rg5 {[%clk
0:00:18.6]} 35. Bf3 {[%clk 0:00:02.6]} 35... f4 {[%clk 0:00:17.3]} 36. Kc4
{[%clk 0:00:03]} 36... Rg6 {[%clk 0:00:15.4]} 37. Kd3 {[%clk 0:00:03.5]} 37...
Rxh6 {[%clk 0:00:15.6]} 38. c4 {[%clk 0:00:04.1]} 38... Rh3 {[%clk 0:00:14.9]}
39. d5 {[%clk 0:00:04.2]} 39... Rd8 {[%clk 0:00:12.5]} 40. Ke4 {[%clk
0:00:04.3]} 40... Bf8 {[%clk 0:00:08.5]} 41. Rd1 {[%clk 0:00:03]} 41... cxd5+
{[%clk 0:00:08.3]} 42. cxd5 {[%clk 0:00:03.2]} 42... Rh6 {[%clk 0:00:07.3]} 43.
Kxf4 {[%clk 0:00:01.6]} 43... a5 {[%clk 0:00:07.5]} 44. Ke4 {[%clk 0:00:02.1]}
44... a4 {[%clk 0:00:07.9]} 45. e6 {[%clk 0:00:01.5]} 45... a3 {[%clk
0:00:07.7]} 46. Kf5 {[%clk 0:00:01.9]} 46... Be7 {[%clk 0:00:08]} 47. Be4 {[%clk
0:00:01.9]} 47... Rf8+ {[%clk 0:00:08.2]} 48. Ke5 {[%clk 0:00:02.5]} 48... Rh5+
{[%clk 0:00:07.8]} 49. Kd4 {[%clk 0:00:02.6]} 49... Bf6+ {[%clk 0:00:08.4]} 50.
Kc5 {[%clk 0:00:03]} 50... a2 {[%clk 0:00:09]} 51. Kd6 {[%clk 0:00:03.1]} 51...
a1=Q {[%clk 0:00:09.2]} 52. Rxa1 {[%clk 0:00:02.8]} 52... Bxa1 {[%clk
0:00:10.1]} 53. e7 {[%clk 0:00:03.7]} 53... Re8 {[%clk 0:00:10.5]} 54. Bg6
{[%clk 0:00:04]} 54... Rh6 {[%clk 0:00:10.4]} 55. Kd7 {[%clk 0:00:04.1]} 55...
Rxe7+ {[%clk 0:00:11]} 56. Kxe7 {[%clk 0:00:04.7]} 56... Rxg6 {[%clk 0:00:11.9]}
0-1